[Event "Paracin Open 2020"]
[Site "Paracin"]
[Date "2020.07.06"]
[Round "4.13"]
[White "Ivanovic, Marko"]
[Black "Tisma, Ivan"]
[Result "1-0"]
[ECO "A45"]
[WhiteElo "2267"]
[BlackElo "2088"]
[Annotator "ChessBase"]
[PlyCount "71"]
[EventDate "2020.07.03"]
[EventType "swiss"]
[EventCountry "SRB"]
[SourceTitle "playchess.com"]
[Source "ChessBase"]
[SourceQuality "1"]
[TimeControl "5400+30"]

1. d4 {[%emt 0:00:00]} Nf6 {[%emt 0:00:09]} 2. Bf4 {[%emt 0:00:00]} d6 {[%emt 0:00:33]} 3. Nc3 {[%emt 0:00:27]} g6 {[%emt 0:00:33]} 4. e4 {[%emt 0:00:07]} Bg7 {[%emt 0:00:29]} 5. Qd2 {[%emt 0:00:08]} h6 {[%emt 0:04:19]} 6. O-O-O {[%emt 0:00:50]} c6 {[%emt 0:00:31]} 7. f3 {[%emt 0:01:02]} Qa5 {[%emt 0:01:31]} 8. Kb1 {[%emt 0:03:12]} Nbd7 {[%emt 0:03:06]} 9. g4 {[%emt 0:18:43]} Kf8 {[%emt 0:08:20]} 10. h4 {[%emt 0:02:50]} h5 {[%emt 0:00:44]} 11. Nh3 {[%emt 0:48:14]} Nb6 {[%emt 0:14:02]} 12. g5 {[%emt 0:01:31]} Ne8 {[%emt 0:02:19]} 13. Qf2 {[%emt 0:00:51]} Be6 {[%emt 0:06:14]} 14. Bc1 {[%emt 0:01:42]} Nc7 {[%emt 0:00:46]} 15. Bd2 {[%emt 0:10:27]} Bc4 {[%emt 0:13:59]} 16. b3 {[%emt 0:01:14]} Bxf1 {[%emt 0:00:59]} 17. Nd5 {[%emt 0:00:13]} Qa3 {[%emt 0:00:24]} 18. Bb4 {[%emt 0:00:52]} Ncxd5 {[%emt 0:03:12]} 19. Bxa3 {[%emt 0:00:06]} Nc3+ {[%emt 0:00:07]} 20. Kc1 {[%emt 0:00:56]} Nxd1 {[%emt 0:00:27]} 21. Qxf1 {[%emt 0:00:21]} Nc3 {[%emt 0:00:18]} 22. Qd3 {[%emt 0:00:58]} Nb5 {[%emt 0:00:11]} 23. Bb2 {[%emt 0:00:06]} d5 {[%emt 0:00:39]} 24. exd5 {[%emt 0:00:33]} Rd8 {[%emt 0:02:59]} 25. c4 {[%emt 0:00:17]} Nc7 {[%emt 0:00:11]} 26. dxc6 {[%emt 0:00:10]} bxc6 {[%emt 0:00:08]} 27. Qe4 {[%emt 0:00:07]} Ne6 {[%emt 0:00:29]} 28. Rd1 {[%emt 0:00:55]} Rc8 {[%emt 0:00:04]} 29. f4 {[%emt 0:00:55]} c5 {[%emt 0:00:37]} 30. f5 {[%emt 0:00:19]} Nxd4 {[%emt 0:00:00]} 31. fxg6 {[%emt 0:00:38]} f5 {[%emt 0:02:11]} 32. Qb7 {[%emt 0:00:03]} Be5 {[%emt 0:01:32]} 33. Bxd4 {[%emt 0:01:06]} cxd4 {[%emt 0:00:15]} 34. Qxa7 {[%emt 0:00:10]} Rc6 {[%emt 0:01:04]} 35. Re1 {[%emt 0:01:07]} Bd6 {[%emt 0:00:13]} 36. g7+ {[%emt 0:00:17]} 1-0

[Event "Paracin Open 2020"]
[Site "Paracin"]
[Date "2020.07.06"]
[Round "4.14"]
[White "Mitev, Valentin"]
[Black "Srdanovic, Jovana"]
[Result "0-1"]
[ECO "D10"]
[WhiteElo "2240"]
[BlackElo "2070"]
[Annotator "ChessBase"]
[PlyCount "52"]
[EventDate "2020.07.03"]
[EventType "swiss"]
[EventCountry "SRB"]
[SourceTitle "playchess.com"]
[Source "ChessBase"]
[SourceQuality "1"]
[TimeControl "5400+30"]

1. d4 d5 2. c4 c6 3. e3 Nf6 4. Nc3 a6 5. b3 Bf5 6. Nf3 {[%emt 0:03:37]} Bc8 {[%emt 0:00:56]} 7. Ng1 {[%emt 0:00:00]} Bf5 {[%emt 0:00:50]} 8. Nf3 {[%emt 0:00:00]} e6 {[%emt 0:00:36]} 9. Be2 {[%emt 0:01:41]} h6 {[%emt 0:00:14]} 10. Ne5 {[%emt 0:02:28]} Nbd7 {[%emt 0:05:50]} 11. O-O {[%emt 0:04:20]} Bb4 {[%emt 0:23:00]} 12. Bb2 {[%emt 0:00:20]} O-O {[%emt 0:06:28]} 13. a3 {[%emt 0:02:02]} Bd6 {[%emt 0:04:30]} 14. f4 {[%emt 0:02:08]} Ne4 {[%emt 0:00:42]} 15. c5 {[%emt 0:05:24]} Bxe5 {[%emt 0:01:44]} 16. fxe5 {[%emt 0:00:20]} f6 {[%emt 0:01:34]} 17. Rxf5 {[%emt 0:06:20]} Nxc3 {[%emt 0:03:00]} 18. Bxc3 {[%emt 0:00:03]} exf5 {[%emt 0:00:08]} 19. e6 {[%emt 0:00:03]} Qe7 {[%emt 0:00:05]} 20. exd7 {[%emt 0:03:30]} Qxe3+ {[%emt 0:00:19]} 21. Kh1 {[%emt 0:00:01]} Qxc3 {[%emt 0:00:27]} 22. Bd3 {[%emt 0:22:43]} g6 {[%emt 0:11:35]} 23. Rc1 {[%emt 0:01:53]} Qxd4 {[%emt 0:03:18]} 24. Qd2 {[%emt 0:17:21]} Kg7 {[%emt 0:04:44]} 25. Qe1 {[%emt 0:07:30]} Qe5 {[%emt 0:04:04]} 26. Qa5 {[%emt 0:00:31]} Qb8 {[%emt 0:02:56]} 0-1

[Event "Paracin Open 2020"]
[Site "Paracin"]
[Date "2020.07.06"]
[Round "4.16"]
[White "Stanojevic, Ilija"]
[Black "Colic, Nikola"]
[Result "1-0"]
[ECO "B07"]
[WhiteElo "2220"]
[BlackElo "1992"]
[Annotator "ChessBase"]
[PlyCount "111"]
[EventDate "2020.07.03"]
[EventType "swiss"]
[EventCountry "SRB"]
[SourceTitle "playchess.com"]
[Source "ChessBase"]
[SourceQuality "1"]
[TimeControl "5400+30"]

1. d4 {[%emt 0:00:00]} d6 {[%emt 0:00:00]} 2. e4 {[%emt 0:00:44]} Nf6 {[%emt 0:00:00]} 3. Nc3 {[%emt 0:00:05]} g6 {[%emt 0:00:00]} 4. h4 {[%emt 0:01:35]} h5 {[%emt 0:00:29]} 5. Nh3 {[%emt 0:01:40]} Bg7 {[%emt 0:00:27]} 6. Ng5 {[%emt 0:00:12]} O-O {[%emt 0:00:34]} 7. f3 {[%emt 0:00:15]} c6 {[%emt 0:00:38]} 8. Be3 {[%emt 0:01:59]} b5 {[%emt 0:01:09]} 9. Qd2 {[%emt 0:03:26]} b4 {[%emt 0:00:34]} 10. Ne2 {[%emt 0:00:02]} Na6 {[%emt 0:02:16]} 11. O-O-O {[%emt 0:00:56]} Qa5 {[%emt 0:04:09]} 12. Kb1 {[%emt 0:00:03]} Rb8 {[%emt 0:01:44]} 13. Nc1 {[%emt 0:00:08]} Nc7 {[%emt 0:03:03]} 14. Nb3 {[%emt 0:02:15]} Qb6 {[%emt 0:05:50]} 15. Bd3 {[%emt 0:09:27]} a5 {[%emt 0:00:43]} 16. g4 {[%emt 0:08:17]} a4 {[%emt 0:00:36]} 17. Nc1 {[%emt 0:00:20]} Nb5 {[%emt 0:01:55]} 18. Qxb4 {[%emt 0:04:54]} a3 {[%emt 0:10:20]} 19. b3 {[%emt 0:00:27]} Qa7 {[%emt 0:02:14]} 20. Be2 {[%emt 0:06:24]} c5 {[%emt 0:01:29]} 21. Qd2 {[%emt 0:03:59]} cxd4 {[%emt 0:02:06]} 22. Bxd4 {[%emt 0:00:10]} Nxd4 {[%emt 0:00:15]} 23. Qxd4 {[%emt 0:00:06]} Qxd4 {[%emt 0:00:41]} 24. Rxd4 {[%emt 0:00:01]} Bd7 {[%emt 0:04:28]} 25. Rdd1 {[%emt 0:03:54]} hxg4 {[%emt 0:01:01]} 26. fxg4 {[%emt 0:01:27]} Nxg4 {[%emt 0:01:04]} 27. Rdg1 {[%emt 0:02:30]} Ne5 {[%emt 0:01:56]} 28. Nd3 {[%emt 0:01:20]} Nc4 {[%emt 0:02:20]} 29. Nf4 {[%emt 0:03:58]} Rfc8 {[%emt 0:00:49]} 30. Nd5 {[%emt 0:02:14]} Rxb3+ {[%emt 0:08:24]} 31. Kc1 {[%emt 0:01:12]} Bb2+ {[%emt 0:01:56]} 32. Kd1 {[%emt 0:00:27]} Ne3+ {[%emt 0:00:43]} 33. Ke1 {[%emt 0:05:14]} Nxd5 {[%emt 0:00:43]} 34. cxb3 {[%emt 0:00:37]} Ne3 {[%emt 0:02:22]} 35. Kd2 {[%emt 0:00:56]} Nc2 {[%emt 0:06:13]} 36. Bc4 {[%emt 0:00:27]} Nd4 {[%emt 0:02:41]} 37. Bxf7+ {[%emt 0:01:43]} Kg7 {[%emt 0:00:30]} 38. Bc4 {[%emt 0:00:12]} Bb5 {[%emt 0:04:09]} 39. Bxb5 {[%emt 0:03:27]} Nxb5 {[%emt 0:00:31]} 40. Ne6+ {[%emt 0:00:27]} Kf7 {[%emt 0:01:14]} 41. Nf4 {[%emt 0:00:47]} Nd4 {[%emt 0:03:12]} 42. Rf1 {[%emt 0:04:18]} Ke8 {[%emt 0:07:27]} 43. e5 {[%emt 0:03:32]} dxe5 {[%emt 0:00:51]} 44. Nxg6 {[%emt 0:00:07]} Rc2+ {[%emt 0:01:37]} 45. Kd3 {[%emt 0:00:10]} Rc3+ {[%emt 0:02:04]} 46. Ke4 {[%emt 0:01:03]} Rc2 {[%emt 0:00:44]} 47. h5 {[%emt 0:01:02]} Re2+ {[%emt 0:02:26]} 48. Kd5 {[%emt 0:00:25]} e6+ {[%emt 0:00:47]} 49. Kd6 {[%emt 0:00:42]} Nf5+ {[%emt 0:00:52]} 50. Kxe6 {[%emt 0:00:46]} Ng7+ {[%emt 0:02:11]} 51. Kd5 {[%emt 0:00:10]} Rd2+ {[%emt 0:02:06]} 52. Ke4 {[%emt 0:00:15]} Ne6 {[%emt 0:01:21]} 53. h6 {[%emt 0:00:41]} Nc5+ {[%emt 0:02:06]} 54. Kf5 {[%emt 0:01:32]} e4 {[%emt 0:00:45]} 55. h7 {[%emt 0:00:22]} e3 {[%emt 0:00:43]} 56. Ne5 {[%emt 0:00:27]} 1-0

[Event "Paracin Open 2020"]
[Site "Paracin"]
[Date "2020.07.07"]
[Round "5.9"]
[White "Sredojevic, Ivan"]
[Black "Pastar, Slaven"]
[Result "1/2-1/2"]
[ECO "C65"]
[WhiteElo "2239"]
[BlackElo "2323"]
[Annotator "ChessBase"]
[PlyCount "162"]
[EventDate "2020.07.03"]
[EventType "swiss"]
[EventCountry "SRB"]
[SourceTitle "playchess.com"]
[Source "ChessBase"]
[SourceQuality "1"]
[TimeControl "5400+30"]

1. e4 {[%emt 0:00:00]} e5 {[%emt 0:00:45]} 2. Nf3 {[%emt 0:00:00]} Nc6 {[%emt 0:00:03]} 3. Bb5 {[%emt 0:00:00]} Nf6 {[%emt 0:00:07]} 4. d3 {[%emt 0:01:53]} Bc5 {[%emt 0:00:19]} 5. O-O {[%emt 0:00:12]} d6 {[%emt 0:01:47]} 6. c3 {[%emt 0:00:15]} O-O {[%emt 0:00:41]} 7. h3 {[%emt 0:00:18]} Ne7 {[%emt 0:05:42]} 8. Re1 {[%emt 0:01:00]} Ng6 {[%emt 0:01:38]} 9. Nbd2 {[%emt 0:03:54]} Bd7 {[%emt 0:06:53]} 10. Bc4 {[%emt 0:01:41]} a6 {[%emt 0:03:59]} 11. Nf1 {[%emt 0:00:36]} Re8 {[%emt 0:04:09]} 12. Ng5 {[%emt 0:00:52]} Rf8 {[%emt 0:00:06]} 13. Nf3 {[%emt 0:00:04]} Bc6 {[%emt 0:04:20]} 14. Ng3 {[%emt 0:03:01]} d5 {[%emt 0:02:56]} 15. exd5 {[%emt 0:10:41]} Bxd5 {[%emt 0:01:00]} 16. Nxe5 {[%emt 0:14:19]} Nxe5 {[%emt 0:02:18]} 17. Rxe5 {[%emt 0:00:13]} Bxf2+ {[%emt 0:09:15]} 18. Kxf2 {[%emt 0:05:00]} Bxc4 {[%emt 0:00:05]} 19. Bg5 {[%emt 0:06:17]} Bxd3 {[%emt 0:06:08]} 20. Re3 {[%emt 0:35:17]} Bg6 {[%emt 0:03:23]} 21. Qxd8 {[%emt 0:04:42]} Raxd8 {[%emt 0:02:05]} 22. Bxf6 {[%emt 0:00:06]} gxf6 {[%emt 0:00:05]} 23. Rae1 {[%emt 0:00:11]} Rd2+ {[%emt 0:08:55]} 24. R1e2 {[%emt 0:01:03]} Rfd8 {[%emt 0:00:26]} 25. Re8+ {[%emt 0:00:56]} Kg7 {[%emt 0:00:10]} 26. Rxd8 {[%emt 0:00:07]} Rxd8 {[%emt 0:00:04]} 27. Kf3 {[%emt 0:01:05]} c5 {[%emt 0:06:58]} 28. Kf4 {[%emt 0:01:48]} Rd5 {[%emt 0:01:08]} 29. Re7 {[%emt 0:01:39]} b5 {[%emt 0:01:45]} 30. Re2 {[%emt 0:00:22]} b4 {[%emt 0:05:38]} 31. cxb4 {[%emt 0:00:26]} cxb4 {[%emt 0:00:13]} 32. Re3 {[%emt 0:01:15]} Bc2 {[%emt 0:03:27]} 33. Re2 {[%emt 0:02:11]} Bb1 {[%emt 0:01:18]} 34. a3 {[%emt 0:01:53]} bxa3 {[%emt 0:02:16]} 35. bxa3 {[%emt 0:00:02]} a5 {[%emt 0:00:40]} 36. Re3 {[%emt 0:00:35]} h5 {[%emt 0:05:39]} 37. Kf3 {[%emt 0:00:59]} Bc2 {[%emt 0:02:21]} 38. Rc3 {[%emt 0:00:30]} h4 {[%emt 0:01:21]} 39. Nf1 {[%emt 0:00:08]} Bg6 {[%emt 0:01:46]} 40. Ne3 {[%emt 0:00:14]} Bh5+ {[%emt 0:00:34]} 41. Ke4 {[%emt 0:00:25]} Re5+ {[%emt 0:00:31]} 42. Kf4 {[%emt 0:00:27]} Bg6 {[%emt 0:01:15]} 43. Rc4 {[%emt 0:00:12]} Rb5 {[%emt 0:00:33]} 44. Kf3 {[%emt 0:00:34]} Bh5+ {[%emt 0:01:11]} 45. Kf2 {[%emt 0:00:52]} Rb2+ {[%emt 0:00:39]} 46. Kg1 {[%emt 0:00:03]} Be2 {[%emt 0:05:28]} 47. Rxh4 {[%emt 0:01:17]} Bb5 {[%emt 0:00:54]} 48. Rh5 {[%emt 0:02:08]} a4 {[%emt 0:00:23]} 49. Rc5 {[%emt 0:00:17]} Bd7 {[%emt 0:00:34]} 50. Nc2 {[%emt 0:01:17]} Ra2 {[%emt 0:00:30]} 51. Rc3 {[%emt 0:00:11]} Be6 {[%emt 0:00:12]} 52. Nd4 {[%emt 0:00:19]} f5 {[%emt 0:00:33]} 53. Kh2 {[%emt 0:01:58]} Kf6 {[%emt 0:00:15]} 54. Kg3 {[%emt 0:00:35]} Bd5 {[%emt 0:00:28]} 55. Nf3 {[%emt 0:00:11]} Rb2 {[%emt 0:00:56]} 56. Rc5 {[%emt 0:00:15]} Be6 {[%emt 0:00:37]} 57. Ra5 {[%emt 0:00:10]} Bb3 {[%emt 0:00:31]} 58. Ra6+ {[%emt 0:00:11]} Kg7 {[%emt 0:00:16]} 59. Nd4 {[%emt 0:00:01]} f4+ {[%emt 0:00:18]} 60. Kf3 {[%emt 0:00:14]} Ra2 {[%emt 0:00:32]} 61. Nxb3 {[%emt 0:01:44]} axb3 {[%emt 0:00:02]} 62. a4 {[%emt 0:00:15]} f6 {[%emt 0:01:15]} 63. Rb6 {[%emt 0:00:16]} b2 {[%emt 0:00:28]} 64. a5 {[%emt 0:00:11]} Rxa5 {[%emt 0:00:40]} 65. Rxb2 {[%emt 0:00:06]} Ra4 {[%emt 0:00:24]} 66. Re2 {[%emt 0:00:46]} f5 {[%emt 0:00:38]} 67. Re6 {[%emt 0:00:07]} Kf7 {[%emt 0:00:08]} 68. Rh6 {[%emt 0:00:12]} Kg7 {[%emt 0:00:18]} 69. Rh4 {[%emt 0:00:17]} Kf6 {[%emt 0:00:18]} 70. Rxf4 {[%emt 0:00:08]} Ra3+ {[%emt 0:00:12]} 71. Kf2 {[%emt 0:00:09]} Kg5 {[%emt 0:00:24]} 72. Rf3 {[%emt 0:00:40]} Ra2+ {[%emt 0:00:14]} 73. Kg3 {[%emt 0:00:14]} f4+ {[%emt 0:01:27]} 74. Kh2 {[%emt 0:00:02]} Ra5 {[%emt 0:00:52]} 75. Rb3 {[%emt 0:00:09]} Ra2 {[%emt 0:00:29]} 76. Rb5+ {[%emt 0:00:17]} Kg6 {[%emt 0:00:12]} 77. h4 {[%emt 0:01:41]} f3 {[%emt 0:00:34]} 78. Rg5+ {[%emt 0:00:26]} Kf6 {[%emt 0:00:16]} 79. Rg3 {[%emt 0:01:10]} Rxg2+ {[%emt 0:00:16]} 80. Rxg2 {[%emt 0:00:05]} fxg2 {[%emt 0:00:02]} 81. Kxg2 {[%emt 0:00:07]} Ke5 1/2-1/2

[Event "Paracin Open 2020"]
[Site "Paracin"]
[Date "2020.07.07"]
[Round "6.8"]
[White "Radeva, Viktoria"]
[Black "Todorovic, Nenad I"]
[Result "0-1"]
[ECO "B53"]
[WhiteElo "2327"]
[BlackElo "2295"]
[Annotator "ChessBase"]
[PlyCount "82"]
[EventDate "2020.07.03"]
[EventType "swiss"]
[EventCountry "SRB"]
[SourceTitle "playchess.com"]
[Source "ChessBase"]
[SourceQuality "1"]
[TimeControl "5400+30"]

1. e4 {[%emt 0:00:00]} c5 {[%emt 0:00:14]} 2. Nf3 {[%emt 0:00:00]} d6 {[%emt 0:00:06]} 3. d4 {[%emt 0:00:00]} cxd4 {[%emt 0:00:03]} 4. Qxd4 {[%emt 0:00:00]} a6 {[%emt 0:13:57]} 5. h3 {[%emt 0:00:32]} Nc6 {[%emt 0:00:07]} 6. Qe3 {[%emt 0:00:07]} g6 {[%emt 0:00:09]} 7. Be2 {[%emt 0:00:21]} Bg7 {[%emt 0:00:10]} 8. O-O {[%emt 0:00:29]} Nf6 {[%emt 0:00:07]} 9. c4 {[%emt 0:00:05]} O-O {[%emt 0:00:33]} 10. Nc3 {[%emt 0:00:06]} Nd7 {[%emt 0:03:42]} 11. Rd1 {[%emt 0:00:14]} Nc5 {[%emt 0:02:32]} 12. Rb1 {[%emt 0:00:28]} Bxc3 {[%emt 0:20:15]} 13. bxc3 {[%emt 0:25:36]} f6 {[%emt 0:33:12]} 14. Ba3 {[%emt 0:03:47]} b6 {[%emt 0:01:59]} 15. Nd4 {[%emt 0:01:55]} Bd7 {[%emt 0:00:21]} 16. f4 {[%emt 0:03:38]} Qc7 {[%emt 0:01:43]} 17. h4 {[%emt 0:05:55]} Na5 {[%emt 0:02:34]} 18. f5 {[%emt 0:05:35]} Nc6 {[%emt 0:06:32]} 19. Nxc6 {[%emt 0:07:25]} Bxc6 {[%emt 0:00:45]} 20. Bf3 {[%emt 0:01:15]} Nd7 {[%emt 0:04:22]} 21. Bc1 {[%emt 0:01:19]} gxf5 {[%emt 0:00:57]} 22. exf5 {[%emt 0:04:10]} Bxf3 {[%emt 0:00:07]} 23. Qxf3 {[%emt 0:00:08]} Ne5 {[%emt 0:01:37]} 24. Qd5+ {[%emt 0:00:44]} Kh8 {[%emt 0:00:00]} 25. Be3 {[%emt 0:00:36]} Qxc4 {[%emt 0:01:33]} 26. Rxb6 {[%emt 0:02:07]} Qxd5 {[%emt 0:00:37]} 27. Rxd5 {[%emt 0:00:14]} Nc4 {[%emt 0:00:15]} 28. Rd3 {[%emt 0:02:19]} Nxb6 {[%emt 0:00:14]} 29. Bxb6 {[%emt 0:00:01]} Rab8 {[%emt 0:00:09]} 30. Bd4 {[%emt 0:00:17]} Kg8 {[%emt 0:01:55]} 31. Rd2 {[%emt 0:01:14]} Kf7 {[%emt 0:00:10]} 32. Kf2 {[%emt 0:01:16]} h5 {[%emt 0:02:24]} 33. a4 {[%emt 0:01:33]} Rb3 {[%emt 0:00:14]} 34. Kf3 {[%emt 0:02:03]} Rg8 {[%emt 0:01:45]} 35. g3 {[%emt 0:01:17]} Ra3 {[%emt 0:00:49]} 36. Rb2 {[%emt 0:01:40]} Rxa4 {[%emt 0:00:30]} 37. Rb7 {[%emt 0:00:08]} Ra1 {[%emt 0:00:37]} 38. Rc7 {[%emt 0:03:03]} Ra5 {[%emt 0:00:37]} 39. Be3 {[%emt 0:00:13]} Rxf5+ {[%emt 0:00:09]} 40. Bf4 {[%emt 0:00:01]} Rc5 {[%emt 0:00:16]} 41. Bxd6 {[%emt 0:00:12]} Rxc7 {[%emt 0:00:08]} 0-1

[Event "Paracin Open 2020"]
[Site "Paracin"]
[Date "2020.07.07"]
[Round "6.9"]
[White "Aleksic, Neven"]
[Black "Pasti, Aron"]
[Result "1-0"]
[ECO "E10"]
[WhiteElo "2169"]
[BlackElo "2338"]
[Annotator "ChessBase"]
[PlyCount "77"]
[EventDate "2020.07.03"]
[EventType "swiss"]
[EventCountry "SRB"]
[SourceTitle "playchess.com"]
[Source "ChessBase"]
[SourceQuality "1"]
[TimeControl "5400+30"]

1. d4 {[%emt 0:00:00]} Nf6 {[%emt 0:00:00]} 2. c4 {[%emt 0:00:00]} e6 {[%emt 0:00:00]} 3. Nf3 {[%emt 0:00:00]} d5 {[%emt 0:00:00]} 4. cxd5 {[%emt 0:00:09]} exd5 {[%emt 0:00:00]} 5. Nc3 {[%emt 0:00:09]} c6 {[%emt 0:00:00]} 6. Bg5 {[%emt 0:00:07]} h6 {[%emt 0:00:15]} 7. Bh4 {[%emt 0:00:10]} Bf5 {[%emt 0:00:07]} 8. Qb3 {[%emt 0:01:30]} g5 {[%emt 0:00:15]} 9. Bg3 {[%emt 0:01:00]} Qb6 {[%emt 0:00:13]} 10. e3 {[%emt 0:03:40]} Nbd7 {[%emt 0:05:41]} 11. Be2 {[%emt 0:02:06]} Be7 {[%emt 0:05:42]} 12. Nd2 {[%emt 0:04:32]} O-O {[%emt 0:12:50]} 13. O-O {[%emt 0:01:21]} Rfe8 {[%emt 0:02:20]} 14. Rfe1 {[%emt 0:01:49]} Nf8 {[%emt 0:02:26]} 15. Rac1 {[%emt 0:09:08]} Ng6 {[%emt 0:02:32]} 16. f3 {[%emt 0:05:28]} Bf8 {[%emt 0:05:21]} 17. Bf1 {[%emt 0:03:24]} Rac8 {[%emt 0:02:22]} 18. a3 {[%emt 0:10:19]} h5 {[%emt 0:08:02]} 19. Qxb6 {[%emt 0:05:32]} axb6 {[%emt 0:00:08]} 20. h3 {[%emt 0:03:12]} g4 {[%emt 0:04:16]} 21. hxg4 {[%emt 0:02:08]} hxg4 {[%emt 0:00:08]} 22. e4 {[%emt 0:06:33]} dxe4 {[%emt 0:03:30]} 23. fxe4 {[%emt 0:00:32]} Be6 {[%emt 0:00:45]} 24. Nc4 {[%emt 0:10:59]} Nh5 {[%emt 0:09:03]} 25. Bf2 {[%emt 0:02:00]} Bxc4 {[%emt 0:07:10]} 26. Bxc4 {[%emt 0:00:08]} g3 {[%emt 0:00:19]} 27. Be3 {[%emt 0:00:23]} b5 {[%emt 0:00:32]} 28. Bb3 {[%emt 0:02:18]} b4 {[%emt 0:08:22]} 29. axb4 {[%emt 0:01:14]} Bxb4 {[%emt 0:00:19]} 30. Rf1 {[%emt 0:01:29]} Rf8 {[%emt 0:04:39]} 31. e5 {[%emt 0:06:14]} Bxc3 {[%emt 0:00:10]} 32. bxc3 {[%emt 0:00:17]} c5 {[%emt 0:02:11]} 33. Bd5 {[%emt 0:04:18]} b5 {[%emt 0:03:07]} 34. e6 {[%emt 0:02:42]} Rcd8 {[%emt 0:01:02]} 35. exf7+ {[%emt 0:00:23]} Kh7 {[%emt 0:02:19]} 36. Be6 {[%emt 0:02:36]} Ng7 {[%emt 0:04:27]} 37. d5 {[%emt 0:00:56]} Nxe6 {[%emt 0:00:02]} 38. dxe6 {[%emt 0:00:10]} Rc8 {[%emt 0:00:11]} 39. Rf5 {[%emt 0:00:42]} 1-0

[Event "Paracin Open 2020"]
[Site "Paracin"]
[Date "2020.07.07"]
[Round "6.10"]
[White "Pastar, Slaven"]
[Black "Van Dael, Siem"]
[Result "1/2-1/2"]
[ECO "E61"]
[WhiteElo "2323"]
[BlackElo "2293"]
[Annotator "ChessBase"]
[PlyCount "42"]
[EventDate "2020.07.03"]
[EventType "swiss"]
[EventCountry "SRB"]
[SourceTitle "playchess.com"]
[Source "ChessBase"]
[SourceQuality "1"]
[TimeControl "5400+30"]

1. d4 {[%emt 0:00:00]} Nf6 {[%emt 0:00:00]} 2. c4 {[%emt 0:00:24]} g6 {[%emt 0:00:03]} 3. Nc3 {[%emt 0:00:05]} Bg7 {[%emt 0:00:07]} 4. Nf3 {[%emt 0:00:48]} d6 {[%emt 0:00:11]} 5. Bg5 {[%emt 0:00:13]} h6 {[%emt 0:01:30]} 6. Bh4 {[%emt 0:00:08]} Nbd7 {[%emt 0:00:52]} 7. e3 {[%emt 0:00:35]} O-O {[%emt 0:00:34]} 8. Nd2 {[%emt 0:04:20]} e5 {[%emt 0:00:43]} 9. Be2 {[%emt 0:00:31]} c6 {[%emt 0:01:23]} 10. O-O {[%emt 0:07:35]} exd4 {[%emt 0:02:29]} 11. exd4 {[%emt 0:00:06]} Re8 {[%emt 0:00:10]} 12. Rc1 {[%emt 0:13:51]} d5 {[%emt 0:03:11]} 13. cxd5 {[%emt 0:01:33]} g5 {[%emt 0:00:07]} 14. Bg3 {[%emt 0:07:55]} Nxd5 {[%emt 0:00:30]} 15. Nc4 {[%emt 0:02:15]} Nxc3 {[%emt 0:04:24]} 16. bxc3 {[%emt 0:00:45]} Nf6 {[%emt 0:01:13]} 17. Nd6 {[%emt 0:00:47]} Re6 {[%emt 0:04:24]} 18. Nxc8 {[%emt 0:01:00]} Rxc8 {[%emt 0:00:06]} 19. Bf3 {[%emt 0:04:27]} Qa5 {[%emt 0:07:42]} 20. Qb3 {[%emt 0:07:29]} b6 {[%emt 0:00:45]} 21. Be5 {[%emt 0:09:35]} Rce8 {[%emt 0:04:38]} 1/2-1/2

[Event "Paracin Open 2020"]
[Site "Paracin"]
[Date "2020.07.07"]
[Round "6.13"]
[White "Tisma, Ivan"]
[Black "Formento, Paolo"]
[Result "0-1"]
[ECO "A06"]
[WhiteElo "2088"]
[BlackElo "2294"]
[Annotator "ChessBase"]
[PlyCount "116"]
[EventDate "2020.07.03"]
[EventType "swiss"]
[EventCountry "SRB"]
[SourceTitle "playchess.com"]
[Source "ChessBase"]
[SourceQuality "1"]
[TimeControl "5400+30"]

1. Nf3 {[%emt 0:00:00]} d5 {[%emt 0:02:20]} 2. g3 {[%emt 0:00:33]} c6 {[%emt 0:01:01]} 3. Bg2 {[%emt 0:00:48]} Nf6 {[%emt 0:01:00]} 4. O-O {[%emt 0:01:21]} Bf5 {[%emt 0:00:06]} 5. d3 {[%emt 0:10:34]} h6 {[%emt 0:01:00]} 6. Nbd2 {[%emt 0:00:24]} e6 {[%emt 0:00:51]} 7. c4 {[%emt 0:01:22]} Nbd7 {[%emt 0:00:17]} 8. Re1 {[%emt 0:01:05]} Bh7 {[%emt 0:01:47]} 9. a3 {[%emt 0:03:13]} a5 {[%emt 0:00:45]} 10. b3 {[%emt 0:00:15]} Bc5 {[%emt 0:04:18]} 11. Bb2 {[%emt 0:00:37]} O-O {[%emt 0:09:45]} 12. Qc1 {[%emt 0:04:14]} Rc8 {[%emt 0:12:15]} 13. Bc3 {[%emt 0:02:54]} e5 {[%emt 0:08:10]} 14. d4 {[%emt 0:11:07]} exd4 {[%emt 0:05:58]} 15. Bxd4 {[%emt 0:00:29]} Ne4 {[%emt 0:19:08]} 16. Qb2 {[%emt 0:09:39]} Qb6 {[%emt 0:01:40]} 17. cxd5 {[%emt 0:16:52]} cxd5 {[%emt 0:00:58]} 18. Bxc5 {[%emt 0:03:48]} Qxc5 {[%emt 0:04:51]} 19. Nd4 {[%emt 0:02:04]} Qc3 {[%emt 0:03:35]} 20. Qxc3 {[%emt 0:01:41]} Rxc3 {[%emt 0:00:06]} 21. Ra2 {[%emt 0:01:41]} Rfc8 {[%emt 0:01:59]} 22. Bh3 {[%emt 0:01:02]} Rc1 {[%emt 0:05:07]} 23. Rxc1 {[%emt 0:01:56]} Rxc1+ {[%emt 0:00:02]} 24. Kg2 {[%emt 0:00:15]} Nc3 {[%emt 0:02:37]} 25. Rb2 {[%emt 0:01:03]} Ne5 {[%emt 0:02:06]} 26. N2f3 {[%emt 0:03:05]} Be4 {[%emt 0:01:20]} 27. Bf5 {[%emt 0:03:37]} Nxe2 {[%emt 0:04:51]} 28. Bxe4 {[%emt 0:01:19]} Nxd4 {[%emt 0:00:39]} 29. Bxd5 {[%emt 0:00:28]} Ndxf3 {[%emt 0:01:40]} 30. Bxf3 {[%emt 0:00:06]} Nd3 {[%emt 0:00:03]} 31. Re2 {[%emt 0:02:22]} Ne1+ {[%emt 0:00:09]} 32. Rxe1 {[%emt 0:00:09]} Rxe1 {[%emt 0:00:01]} 33. Bxb7 {[%emt 0:00:12]} Ra1 {[%emt 0:01:12]} 34. a4 {[%emt 0:00:44]} g5 {[%emt 0:00:42]} 35. h3 {[%emt 0:00:47]} Rc1 {[%emt 0:00:32]} 36. Bd5 {[%emt 0:00:26]} Rc3 {[%emt 0:00:19]} 37. Kf1 {[%emt 0:00:39]} Rc2 {[%emt 0:00:22]} 38. Kg2 {[%emt 0:00:21]} Kg7 {[%emt 0:00:33]} 39. Kf3 {[%emt 0:00:28]} f5 {[%emt 0:00:22]} 40. Ke3 {[%emt 0:00:42]} Kf6 {[%emt 0:00:47]} 41. Bc4 {[%emt 0:01:00]} h5 {[%emt 0:01:36]} 42. h4 {[%emt 0:01:01]} f4+ {[%emt 0:01:14]} 43. gxf4 {[%emt 0:08:05]} gxh4 {[%emt 0:00:08]} 44. Kf3 {[%emt 0:00:38]} Rc3+ {[%emt 0:00:35]} 45. Kg2 {[%emt 0:00:09]} Kf5 {[%emt 0:00:16]} 46. Bd5 {[%emt 0:01:13]} Kxf4 {[%emt 0:00:52]} 47. Bf7 {[%emt 0:00:18]} Kg5 {[%emt 0:01:13]} 48. Bd5 {[%emt 0:00:24]} h3+ {[%emt 0:00:29]} 49. Kh2 {[%emt 0:00:14]} Kh4 {[%emt 0:00:20]} 50. Bc4 {[%emt 0:00:31]} Rc2 {[%emt 0:00:23]} 51. Kg1 {[%emt 0:00:22]} h2+ {[%emt 0:00:20]} 52. Kxh2 {[%emt 0:00:14]} Rxf2+ {[%emt 0:00:04]} 53. Kg1 {[%emt 0:00:16]} Rb2 {[%emt 0:00:05]} 54. Bd5 {[%emt 0:00:55]} Kg3 {[%emt 0:00:09]} 55. Kf1 {[%emt 0:00:12]} h4 {[%emt 0:00:05]} 56. Ke1 {[%emt 0:00:34]} h3 {[%emt 0:00:11]} 57. Kd1 {[%emt 0:00:14]} h2 {[%emt 0:00:11]} 58. Kc1 {[%emt 0:00:10]} Rg2 {[%emt 0:00:07]} 0-1